Cogmind - Beta 14 @@@ ROGUE MODE // 2024.08.08 @ 15:14:08 Player: celerysam Result: Destroyed by G-67 Veteran with Plasma Rifle Performance ------------- Evolutions (5) 2500 Regions Visited (16) 3200 Robots Destroyed (31) 155 Value Destroyed (690) 690 Prototype IDs (8) 160 Alien Tech Used (0) 0 Bonus (827) 827 TOTAL SCORE: 7532 Bonus ------- High Alert Combat Kills 27 Entered DSFs 500 Met Zhirov 300 Cogmind --------- Core Integrity 0/1000 Matter 275/300 Energy 34/100 System Corruption 2% Temperature Cool (0) Movement Core (50) Location -4/Proximity Caves Parts ------- > --- POWER (2) -------- (None) > --- PROPULSION (6) --- (None) > --- UTILITY (5) ------ Improved Transmission Jammer > --- WEAPON (4) ------- Improved Plasma Cutter > --- INVENTORY (5) ---- Neutrino Core Fusion Reactor Advanced Energy Well (500) Transdimensional Reconstructor Integrated Reactor Peak State ------------ > --- POWER ------------ Light Angular Momentum Engine Fusion Reactor > --- PROPULSION ------- Cesium-ion Thruster Cooled VTOL Module Cooled VTOL Module Cooled VTOL Module Cooled VTOL Module Nuclear Pulse Thruster > --- UTILITY ---------- Power Amplifier Improved Cooling System Medium Storage Unit Advanced Weight Redist. System Experimental Core Shielding > --- WEAPON ----------- Improved Datajack Chainsword > --- INVENTORY -------- Neutrino Core Micro Antimatter Reactor Improved Titanium Leg Power Amplifier Compact Battery Improved Transmission Jammer Transdimensional Reconstructor Integrated Reactor Flak Gun Improved Concussive RPG [Rating: 75] Favorites ----------- Power Ion Engine Engine Ion Engine Power Core Light Nuclear Core Reactor Fusion Reactor Propulsion Cooled VTOL Module Treads Advanced Treads Leg Aluminum Leg Hover Unit Improved Airjet Flight Unit Cooled VTOL Module Utility Structural Scanner Device Structural Scanner Storage Small Storage Unit Processor Advanced Targeting Computer Protection Experimental Core Shielding Weapon Improved Datajack Energy Gun Medium Laser Ballistic Gun Minigun Ballistic Cannon Gauss Cannon Launcher Improved Concussive RPG Special Weapon Improved Plasma Cutter Impact Weapon Heavy Flail Slashing Weapon Chainsword Piercing Weapon Spear Special Melee Weapon Improved Datajack Build | -11 -10 -10 -9 -8 -7 -7 -6 -6 -6 -6 -6 -5 -5 -5 -5 -4 ------- Run | Yrd Mat Min Mat Mat Fac DSF Fac Was Fac Low Low Fac Upp Upp Zhi Pro Slots Evolved 10 | . . . 2 2 2 . 2 . . . . 2 . . . . Power 1 | . . . . 1 . . . . . . . . . . . . Propulsion 4 | . . . 2 . 2 . . . . . . . . . . . Utility 3 | . . . . 1 . . 1 . . . . 1 . . . . Weapon 2 | . . . . . . . 1 . . . . 1 . . . . Parts Attached 92 | 6 1 2 10 17 11 9 4 . 6 . 4 4 . . 5 13 Power 12 | 1 . 1 1 1 1 1 1 . 1 . 1 . . . 1 2 Engine 8 | 1 . 1 1 1 1 . 1 . 1 . 1 . . . . . Core 2 | . . . . . . 1 . . . . . . . . . 1 Reactor 2 | . . . . . . . . . . . . . . . 1 1 Propulsion 44 | 2 . . 7 13 8 5 . . 3 . 1 . . . . 5 Treads 1 | . . . . . 1 . . . . . . . . . . . Leg 10 | 2 . . . 2 3 1 . . 1 . . . . . . 1 Wheel . | . . . . . . . . . . . . . . . . . Hover 1 | . . . . . 1 . . . . . . . . . . . Flight 32 | . . . 7 11 3 4 . . 2 . 1 . . . . 4 Utility 21 | 1 1 . . 2 . 3 2 . 1 . 1 3 . . 4 3 Device 12 | . 1 . . 1 . 2 . . 1 . . 2 . . 2 3 Storage 7 | 1 . . . . . 1 2 . . . 1 1 . . 1 . Processor 1 | . . . . 1 . . . . . . . . . . . . Hackware . | . . . . . . . . . . . . . . . . . Protection 1 | . . . . . . . . . . . . . . . 1 . Artifact . | . . . . . . . . . . . . . . . . . Weapon 15 | 2 . 1 2 1 2 . 1 . 1 . 1 1 . . . 3 Energy Gun 3 | 2 . . . . . . . . 1 . . . . . . . Energy Cannon . | . . . . . . . . . . . . . . . . . Ballistic Gun 5 | . . 1 2 . 1 . . . . . . . . . . 1 Ballistic Cannon 1 | . . . . . 1 . . . . . . . . . . . Launcher 1 | . . . . . . . . . . . . . . . . 1 Special Weapon 1 | . . . . . . . . . . . . . . . . 1 Impact Weapon 1 | . . . . 1 . . . . . . . . . . . . Slashing Weapon 1 | . . . . . . . . . . . . 1 . . . . Piercing Weapon 1 | . . . . . . . 1 . . . . . . . . . Special Melee Weapon 1 | . . . . . . . . . . . 1 . . . . . Unidentified Prototypes 8 | . . . 1 . 2 . . . . . . 1 . . 4 . Parts Lost 51 | . . 2 4 15 . 3 1 . 1 . 2 . . . . 23 Power 8 | . . 1 1 2 . . . . 1 . 1 . . . . 2 Propulsion 27 | . . . 2 11 . 1 1 . . . 1 . . . . 11 Utility 9 | . . . . . . 2 . . . . . . . . . 7 Weapon 7 | . . 1 1 2 . . . . . . . . . . . 3 Highest Loss Streak 20 | . . 2 4 15 . 3 1 . 1 . 2 . . . . 20 To Critical Strikes . | . . . . . . . . . . . . . . . . . Average Slot Usage (%) 80 | . 91 95 96 67 68 84 89 80 84 86 91 88 88 88 87 57 Engine 8 | . 14 13 9 6 6 7 6 6 7 13 13 11 11 11 6 . Treads 1 | . . . . . 3 5 . . . . . . . . . . Leg 9 | . 28 28 . . 18 18 6 6 8 . . . . . . . Flight 21 | . . . 43 24 8 12 31 26 29 40 40 35 35 35 35 22 Device 13 | . 6 14 11 10 8 11 13 13 14 20 20 22 23 23 22 12 Storage 8 | . 14 14 11 9 7 4 12 13 11 6 6 5 5 5 5 5 Energy Gun 4 | . 28 23 7 . . . . . 2 6 6 3 . . . . Ballistic Gun 3 | . . 1 14 8 6 7 . . . . . . . . . . Ballistic Cannon 1 | . . . . . 4 7 4 . . . . . . . . . Slashing Weapon 1 | . . . . . . . . . . . . 1 5 5 5 3 Special Melee Weapon 1 | . . . . . . . . . . . 4 5 5 5 5 2 Peak Build Rating 75 | 6 7 7 13 18 32 44 49 46 52 52 56 69 63 63 75 72 Average Rating 33 | 3 6 6 11 13 24 32 45 46 50 52 54 62 63 63 67 43 On Entrance 36 | . 6 7 7 13 9 32 44 46 46 52 52 56 63 63 63 68 Naked Turns . | . . . . . . . . . . . . . . . . . Heaviest Build 40 | 14 15 15 16 14 21 31 33 28 38 38 39 40 40 40 40 39 Greatest Support 54 | 20 20 20 17 17 45 54 34 29 39 39 40 40 40 40 40 40 Greatest Overweight (x) 3 | 2 . . 1 3 2 . . . . . . . . . . 3 Average Overweight (x) . | 1 . . . . . . . . . . . . . . . . Largest Inventory Capacity 10 | 8 8 8 8 8 8 10 10 10 10 10 10 10 10 10 10 10 Average Capacity 8 | 7 8 8 8 8 8 7 10 10 10 10 10 10 10 10 10 9 Most Carried 10 | 8 8 8 8 8 8 7 8 8 10 10 10 10 10 10 10 10 Average Carried 7 | 4 6 7 7 6 7 5 6 7 9 9 9 9 10 10 9 8 Final Capacity 10 | 8 8 8 8 8 8 10 10 10 10 10 10 10 10 10 10 5 Final Carried 10 | 6 7 8 8 5 8 4 7 8 9 10 8 10 10 10 10 5 Class Distribution -------------------- 60% | Mutant 39% | Sprinter Dominant Class ---------------- Mutant | -10/Materials Mutant | -10/Mines Mutant | -9/Materials Mutant | -8/Materials Mutant | -7/Factory Mutant | -7/DSF Sprinter | -6/Factory Mutant | -6/Waste Mutant | -6/Factory Sprinter | -6/Lower Caves Sprinter | -6/Lower Caves Sprinter | -5/Factory Sprinter | -5/Upper Caves Sprinter | -5/Upper Caves Sprinter | -5/Zhirov Sprinter | -4/Proximity Caves Resources | -11 -10 -10 -9 -8 -7 -7 -6 -6 -6 -6 -6 -5 -5 -5 -5 -4 ----------- Run | Yrd Mat Min Mat Mat Fac DSF Fac Was Fac Low Low Fac Upp Upp Zhi Pro Matter Collected 1214 | 240 . 50 89 . 198 216 . . 148 65 78 . . . . 130 Remotely . | . . . . . . . . . . . . . . . . . Salvage Created 785 | . . 145 111 191 . 204 24 . . . . . . . . 110 Parts 65 | . . 10 7 23 . 13 2 . . . . . . . . 10 Haulers Intercepted . | . . . . . . . . . . . . . . . . . Recyclers Shooed 1 | . . 1 . . . . . . . . . . . . . . Parts Field Recycled . | . . . . . . . . . . . . . . . . . Retrieved Matter . | . . . . . . . . . . . . . . . . . Parts Self-Destructed 7 | . . . . . . . . . . . . . . . . 7 Prevented . | . . . . . . . . . . . . . . . . . Kills | -11 -10 -10 -9 -8 -7 -7 -6 -6 -6 -6 -6 -5 -5 -5 -5 -4 ------- Run | Yrd Mat Min Mat Mat Fac DSF Fac Was Fac Low Low Fac Upp Upp Zhi Pro Combat Hostiles Destroyed 30 | . . 5 4 11 . 4 1 . . . . . . . . 5 Melee 6 | . . . . 2 . . . . . . . . . . . 4 Guns 17 | . . 4 4 7 . 1 . . . . . . . . . 1 Cannons 4 | . . . . . . 3 1 . . . . . . . . . AOE 1 | . . . . 1 . . . . . . . . . . . . Classes Destroyed 7 | . . 2 2 1 . 1 . . . . . . . . . 1 Builder 1 | . . . 1 . . . . . . . . . . . . . Drone 1 | . . . . . . . . . . . . . . . . 1 Swarmer 19 | . . 3 3 8 . . 1 . . . . . . . . 4 Cutter 2 | . . . . 2 . . . . . . . . . . . . Grunt 6 | . . 2 . 1 . 3 . . . . . . . . . . Sentry 1 | . . . 1 . . . . . . . . . . . . . Heavy 1 | . . . . . . 1 . . . . . . . . . . Best Kill Streak 6 | . . 5 3 6 . 4 1 . . . . . . . . 3 Combat Bots Only 6 | . . 5 3 6 . 4 1 . . . . . . . . 3 Max Kills in Single Turn 1 | . . 1 1 1 . 1 1 . . . . . . . . 1 Gunslinging . | . . . . . . . . . . . . . . . . . Exploded 1 | . . . . 1 . . . . . . . . . . . . Melee 1 | . . . . 1 . . . . . . . . . . . 1 Uniques/NPCs Destroyed . | . . . . . . . . . . . . . . . . . Combat | -11 -10 -10 -9 -8 -7 -7 -6 -6 -6 -6 -6 -5 -5 -5 -5 -4 -------- Run | Yrd Mat Min Mat Mat Fac DSF Fac Was Fac Low Low Fac Upp Upp Zhi Pro Hostile Shots Fired 555 | . . 32 68 123 . 42 53 . 14 10 7 2 . 9 . 195 Missed 221 | . . 6 28 51 . 15 26 . 5 8 1 1 . 6 . 74 Damage Taken 5651 | . . 288 415 1161 . 698 382 . 128 36 147 25 . 61 . 2310 Core 1985 | . . 17 72 548 . 190 96 . . 36 18 . . . . 1008 Absorbed by Shields . | . . . . . . . . . . . . . . . . . Core Remaining (%) 71 | 100 . 93 82 . . 72 . . . . 82 . . . . . Volleys Fired 67 | . . 11 12 14 . 19 4 . . 2 . . . . . 5 Largest 2 | . . 2 2 2 . 2 1 . . 1 . . . . . 1 Hottest 90 | . . 90 73 43 . 73 48 . . 63 . . . . . 28 Shots Fired 118 | . . 19 24 26 . 38 4 . . 2 . . . . . 5 Gun 94 | . . 19 24 26 . 19 . . . 2 . . . . . 4 Cannon 23 | . . . . . . 19 4 . . . . . . . . . Launcher 1 | . . . . . . . . . . . . . . . . 1 Special . | . . . . . . . . . . . . . . . . . Kinetic 88 | . . . 16 26 . 38 4 . . . . . . . . 4 Thermal 21 | . . 11 8 . . . . . . 2 . . . . . . Explosive 1 | . . . . . . . . . . . . . . . . 1 Electromagnetic 8 | . . 8 . . . . . . . . . . . . . . Robot Hit Streak 13 | . . 13 6 8 . 4 8 . . 9 . . . . . 11 Robot Miss Streak 4 | . . 1 2 1 . 4 . . . . . . . . . 4 Penetration Max . | . . . . . . . . . . . . . . . . . Secondary Targets 4 | . . 3 . 1 . . . . . . . . . . . . Max Gunslinging Chain 1 | . . 1 . 1 . . . . . . . . . . . . Shots Hit Robots 100 | . . 16 13 28 . 21 6 . . 1 4 2 . . . 9 Core Hits 44 | . . 8 6 12 . 9 1 . . . . . . . . 8 Critical Kills . | . . . . . . . . . . . . . . . . . Critical Parts Destroyed . | . . . . . . . . . . . . . . . . . Critical Strikes 2 | . . 1 1 . . . . . . . . . . . . . Burn 2 | . . 1 1 . . . . . . . . . . . . . Melee Attacks 45 | . . . . 9 . . 2 . . . 4 3 . . 15 12 Impact 9 | . . . . 9 . . . . . . . . . . . . Slashing 28 | . . . . . . . . . . . . 1 . . 15 12 Piercing 2 | . . . . . . . 2 . . . . . . . . . Sneak Attacks 7 | . . . . . . . . . . . 4 2 . . . 1 Combat Hostiles 3 | . . . . . . . . . . . . 2 . . . 1 Follow-up Attacks . | . . . . . . . . . . . . . . . . . Damage Inflicted 1906 | . . 223 198 481 . 482 163 . . 17 . . . . . 342 Guns 977 | . . 223 198 274 . 177 . . . 17 . . . . . 88 Cannons 418 | . . . . . . 305 113 . . . . . . . . . Explosions . | . . . . . . . . . . . . . . . . . Melee 511 | . . . . 207 . . 50 . . . . . . . . 254 Ramming . | . . . . . . . . . . . . . . . . . Kinetic 1092 | . . . 135 274 . 482 113 . . . . . . . . 88 Thermal 217 | . . 137 63 . . . . . . 17 . . . . . . Explosive . | . . . . . . . . . . . . . . . . . Electromagnetic 86 | . . 86 . . . . . . . . . . . . . . Impact 207 | . . . . 207 . . . . . . . . . . . . Slashing 254 | . . . . . . . . . . . . . . . . 254 Piercing 50 | . . . . . . . 50 . . . . . . . . . Highest Corruption 2 | . . . . . . . . . . . . . . . . 2 Average Corruption 1 | . . . . . . . . . . . . . . . . 1 Corruption Purged . | . . . . . . . . . . . . . . . . . Corruption Blocked . | . . . . . . . . . . . . . . . . . Overload Shots . | . . . . . . . . . . . . . . . . . Overflow Damage 70 | . . . . 45 . . 5 . . . . . . . . 20 Projectiles . | . . . . . . . . . . . . . . . . . Explosions 10 | . . . . . . . . . . . . . . . . 10 Melee 60 | . . . . 45 . . 5 . . . . . . . . 10 Knockbacks 7 | . . . . 1 . 3 3 . . . . . . . . . Impact 1 | . . . . 1 . . . . . . . . . . . . Kinetic 5 | . . . . . . 3 2 . . . . . . . . . Secondary 1 | . . . . . . . 1 . . . . . . . . . Self-Inflicted Damage 31 | . . . . . . . . . . . . . . . . 31 Shots 1 | . . . . . . . . . . . . . . . . 1 Rammed . | . . . . . . . . . . . . . . . . . Targets Rammed . | . . . . . . . . . . . . . . . . . Kicked . | . . . . . . . . . . . . . . . . . Crushed . | . . . . . . . . . . . . . . . . . Highest Temperature 284 | . . 284 64 15 . 31 . . 26 15 . . . . . 210 Average Temperature 96 | . . 157 29 6 . 13 . . 20 15 . . . . . 122 Received Heat Transfer 1012 | . . 87 120 297 . 180 . . 37 18 36 . . 9 . 228 Siege Activations . | . . . . . . . . . . . . . . . . . Robots Corrupted 1 | . . . . 1 . . . . . . . . . . . . Combat Hostiles 1 | . . . . 1 . . . . . . . . . . . . Parts Fried 2 | . . . . 2 . . . . . . . . . . . . Impact Corruptions 4 | . . . . 4 . . . . . . . . . . . . Robots Melted 1 | . . 1 . . . . . . . . . . . . . . Combat Hostiles 1 | . . 1 . . . . . . . . . . . . . . Parts Melted 3 | . . 2 1 . . . . . . . . . . . . . Heat Transferred 777 | . . 481 259 . . . . . . 37 . . . . . . Parts Sabotaged . | . . . . . . . . . . . . . . . . . Parts Stolen . | . . . . . . . . . . . . . . . . . Parts Stripped . | . . . . . . . . . . . . . . . . . Power Chain Reactions . | . . . . . . . . . . . . . . . . . Alert | -11 -10 -10 -9 -8 -7 -7 -6 -6 -6 -6 -6 -5 -5 -5 -5 -4 ------- Run | Yrd Mat Min Mat Mat Fac DSF Fac Was Fac Low Low Fac Upp Upp Zhi Pro Peak Influence 479 | . 15 105 450 479 229 225 212 89 142 . . 88 . . . . Initial 224 | . . 5 40 189 224 160 117 74 62 . . 16 . . . . Average 163 | . 2 45 217 376 224 178 147 76 113 . . 59 . . . . Maximum Alert Level 2 | . . . 2 2 1 1 1 . . . . . . . . . Low Security (%) 57 | 100 100 100 50 9 . 65 91 100 100 . . 100 . . . . Level 1 34 | . . . 32 26 100 34 8 . . . . . . . . . Level 2 8 | . . . 16 64 . . . . . . . . . . . . Level 3 . | . . . . . . . . . . . . . . . . . Level 4 . | . . . . . . . . . . . . . . . . . Level 5 . | . . . . . . . . . . . . . . . . . High Security . | . . . . . . . . . . . . . . . . . Max Security . | . . . . . . . . . . . . . . . . . Squads Dispatched 13 | . . . 3 3 . 2 1 . 1 . 1 2 . . . . Investigation . | . . . . . . . . . . . . . . . . . Extermination . | . . . . . . . . . . . . . . . . . Reinforcement 12 | . . . 3 3 . 2 1 . 1 . . 2 . . . . Assault 1 | . . . . . . . . . . . 1 . . . . . Garrison . | . . . . . . . . . . . . . . . . . Intercept . | . . . . . . . . . . . . . . . . . Searches Triggered . | . . . . . . . . . . . . . . . . . Construction Impeded . | . . . . . . . . . . . . . . . . . Haulers Reinforced . | . . . . . . . . . . . . . . . . . Active Scanning Responses . | . . . . . . . . . . . . . . . . . Cargo Convoy Interrupts . | . . . . . . . . . . . . . . . . . Stealth | -11 -10 -10 -9 -8 -7 -7 -6 -6 -6 -6 -6 -5 -5 -5 -5 -4 --------- Run | Yrd Mat Min Mat Mat Fac DSF Fac Was Fac Low Low Fac Upp Upp Zhi Pro Distress Signals 7 | . . . 3 3 . . . . . . . . . . . 1 Communications Jammed . | . . . . . . . . . . . . . . . . . Distress Signals . | . . . . . . . . . . . . . . . . . Times Spotted 145 | . 1 5 25 34 . 10 13 3 6 7 11 4 . 5 . 21 Peak Tracking Total 15 | . 1 4 15 13 . 4 9 3 4 6 11 2 . 5 . 10 Tactical Retreats 17 | . . . 4 5 . . 1 . 1 . 1 1 . 1 . 3 Traps | -11 -10 -10 -9 -8 -7 -7 -6 -6 -6 -6 -6 -5 -5 -5 -5 -4 ------- Run | Yrd Mat Min Mat Mat Fac DSF Fac Was Fac Low Low Fac Upp Upp Zhi Pro Traps Triggered 2 | . . . . . . 1 1 . . . . . . . . . Indirectly . | . . . . . . . . . . . . . . . . . Trap Hack Attempts . | . . . . . . . . . . . . . . . . . Triggered . | . . . . . . . . . . . . . . . . . Disarmed . | . . . . . . . . . . . . . . . . . Reprogrammed . | . . . . . . . . . . . . . . . . . Reused . | . . . . . . . . . . . . . . . . . Traps Extracted . | . . . . . . . . . . . . . . . . . Installed . | . . . . . . . . . . . . . . . . . Triggered 1 | . . . . 1 . . . . . . . . . . . . Machines | -11 -10 -10 -9 -8 -7 -7 -6 -6 -6 -6 -6 -5 -5 -5 -5 -4 ---------- Run | Yrd Mat Min Mat Mat Fac DSF Fac Was Fac Low Low Fac Upp Upp Zhi Pro Machines Disabled 1 | . . . . . . . . . . 1 . . . . . . Max in Single Turn 1 | . . . . . . . . . . 1 . . . . . . Machines Repaired . | . . . . . . . . . . . . . . . . . Machines Dismantled . | . . . . . . . . . . . . . . . . . Machines Sabotaged . | . . . . . . . . . . . . . . . . . Overloaded Fab Kills . | . . . . . . . . . . . . . . . . . Hacking | -11 -10 -10 -9 -8 -7 -7 -6 -6 -6 -6 -6 -5 -5 -5 -5 -4 --------- Run | Yrd Mat Min Mat Mat Fac DSF Fac Was Fac Low Low Fac Upp Upp Zhi Pro Machines Accessed 13 | . . . 1 1 1 . 2 . 1 . . 2 . . 5 . Terminals 5 | . . . 1 1 1 . . . . . . 2 . . . . Fabricators 2 | . . . . . . . 2 . . . . . . . . . Repair Stations . | . . . . . . . . . . . . . . . . . Recycling Units 1 | . . . . . . . . . 1 . . . . . . . Scanalyzers . | . . . . . . . . . . . . . . . . . Garrison Access . | . . . . . . . . . . . . . . . . . Total Hacks 39 | . . . 3 2 1 . 2 . 1 . . 4 . . 26 . Successful 30 | . . . 1 . 1 . 1 . . . . 1 . . 26 . Failed 9 | . . . 2 2 . . 1 . 1 . . 3 . . . . Catastrophic 2 | . . . 1 . . . . . . . . 1 . . . . Database Lockouts . | . . . . . . . . . . . . . . . . . Manual 9 | . . . 3 2 . . . . . . . 4 . . . . Terminals 10 | . . . 3 2 1 . . . . . . 4 . . . . Fabricators 2 | . . . . . . . 2 . . . . . . . . . Repair Stations . | . . . . . . . . . . . . . . . . . Recycling Units 1 | . . . . . . . . . 1 . . . . . . . Scanalyzers . | . . . . . . . . . . . . . . . . . Garrison Access . | . . . . . . . . . . . . . . . . . Terminal Hacks 27 | . . . . . 1 . . . . . . . . . 26 . Record 26 | . . . . . . . . . . . . . . . 26 . Open DSF 1 | . . . . . 1 . . . . . . . . . . . Fabricator Hacks 1 | . . . . . . . 1 . . . . . . . . . Network Status 1 | . . . . . . . 1 . . . . . . . . . Repair Station Hacks . | . . . . . . . . . . . . . . . . . Recycling Unit Hacks . | . . . . . . . . . . . . . . . . . Scanalyzer . | . . . . . . . . . . . . . . . . . Garrison Access Hacks . | . . . . . . . . . . . . . . . . . Unauthorized Hacks 2 | . . . 1 . . . . . . . . 1 . . . . Terminals 2 | . . . 1 . . . . . . . . 1 . . . . Assimilate 2 | . . . 1 . . . . . . . . 1 . . . . Fabricators . | . . . . . . . . . . . . . . . . . Repair Stations . | . . . . . . . . . . . . . . . . . Recycling Units . | . . . . . . . . . . . . . . . . . Scanalyzers . | . . . . . . . . . . . . . . . . . Garrison Access . | . . . . . . . . . . . . . . . . . Data Cores Recovered . | . . . . . . . . . . . . . . . . . Used . | . . . . . . . . . . . . . . . . . Hacking Detections 8 | . . . 1 1 1 . 2 . 1 . . 2 . . . . Full Trace Events . | . . . . . . . . . . . . . . . . . Feedback Events . | . . . . . . . . . . . . . . . . . Feedback Blocked . | . . . . . . . . . . . . . . . . . Robot Schematics Acquired . | . . . . . . . . . . . . . . . . . Robots Built . | . . . . . . . . . . . . . . . . . Authchips . | . . . . . . . . . . . . . . . . . Time . | . . . . . . . . . . . . . . . . . Total Robot Build Rating . | . . . . . . . . . . . . . . . . . Part Schematics Acquired . | . . . . . . . . . . . . . . . . . Parts Built . | . . . . . . . . . . . . . . . . . Authchips . | . . . . . . . . . . . . . . . . . Time . | . . . . . . . . . . . . . . . . . Total Part Build Rating . | . . . . . . . . . . . . . . . . . Parts Repaired . | . . . . . . . . . . . . . . . . . Time . | . . . . . . . . . . . . . . . . . Parts Recycled . | . . . . . . . . . . . . . . . . . Recycled Matter . | . . . . . . . . . . . . . . . . . Retrieved Matter . | . . . . . . . . . . . . . . . . . Retrieved Components . | . . . . . . . . . . . . . . . . . Parts Scanalyzed . | . . . . . . . . . . . . . . . . . Part Schematics Acquired . | . . . . . . . . . . . . . . . . . Parts Damaged . | . . . . . . . . . . . . . . . . . Bothacking | -11 -10 -10 -9 -8 -7 -7 -6 -6 -6 -6 -6 -5 -5 -5 -5 -4 ------------ Run | Yrd Mat Min Mat Mat Fac DSF Fac Was Fac Low Low Fac Upp Upp Zhi Pro Used RIF Installer . | . . . . . . . . . . . . . . . . . Robots Hacked . | . . . . . . . . . . . . . . . . . Non-combat . | . . . . . . . . . . . . . . . . . Combat . | . . . . . . . . . . . . . . . . . Robot Hacks Applied . | . . . . . . . . . . . . . . . . . Relay Couplers Released . | . . . . . . . . . . . . . . . . . Fabnet Peak Effective % . | . . . . . . . . . . . . . . . . . Robots Rewired 3 | . . . . . . . . . . . 2 1 . . . . Allies Hacked . | . . . . . . . . . . . . . . . . . Hacks Repelled . | . . . . . . . . . . . . . . . . . Allies | -11 -10 -10 -9 -8 -7 -7 -6 -6 -6 -6 -6 -5 -5 -5 -5 -4 -------- Run | Yrd Mat Min Mat Mat Fac DSF Fac Was Fac Low Low Fac Upp Upp Zhi Pro Total Allies 4 | . . . . . . . . . . . 2 2 . . . . Largest Group 2 | . . . . . . . . . . . 2 1 . . . . Highest-Rated Group 58 | . . . . . . . . . . . 58 49 . . . . Highest-Rated Ally 49 | . . . . . . . . . . . 29 49 . . . . Total Orders . | . . . . . . . . . . . . . . . . . Ally Attacks 6 | . . . . . . . . . . . 5 1 . . . . Total Damage 102 | . . . . . . . . . . . 57 45 . . . . Kills . | . . . . . . . . . . . . . . . . . Allies Corrupted . | . . . . . . . . . . . . . . . . . Allies Melted . | . . . . . . . . . . . . . . . . . Intel | -11 -10 -10 -9 -8 -7 -7 -6 -6 -6 -6 -6 -5 -5 -5 -5 -4 ------- Run | Yrd Mat Min Mat Mat Fac DSF Fac Was Fac Low Low Fac Upp Upp Zhi Pro Robot Analysis Total . | . . . . . . . . . . . . . . . . . Derelict Logs Recovered 6 | . . 1 . . . . . . . 1 . . 2 2 . . Drone Launches . | . . . . . . . . . . . . . . . . . Drone Recoveries . | . . . . . . . . . . . . . . . . . Exploration | -11 -10 -10 -9 -8 -7 -7 -6 -6 -6 -6 -6 -5 -5 -5 -5 -4 ------------- Run | Yrd Mat Min Mat Mat Fac DSF Fac Was Fac Low Low Fac Upp Upp Zhi Pro Turns Passed 2158 | 69 79 205 136 174 381 158 74 27 157 97 46 102 101 55 116 181 Spaces Moved 4195 | 40 64 138 233 204 341 104 136 71 412 460 167 390 487 273 311 364 Core 49 | 25 . . . . . . . . . . . . . . . 24 Treads . | . . . . . . . . . . . . . . . . . Legs 518 | 15 64 138 . 6 221 61 . . . . . . . . . 13 Wheels . | . . . . . . . . . . . . . . . . . Hover . | . . . . . . . . . . . . . . . . . Flight 3628 | . . . 233 198 120 43 136 71 412 460 167 390 487 273 311 327 Fastest Speed 20 | 50 120 120 31 31 29 33 33 36 20 20 20 20 20 20 20 20 Average Speed 38 | 131 120 120 32 39 93 85 34 36 33 20 20 20 20 20 20 33 Slowest Speed 280 | 150 120 120 114 280 225 125 36 36 46 20 20 20 20 20 20 200 Overloaded Moves . | . . . . . . . . . . . . . . . . . Propulsion Burnouts . | . . . . . . . . . . . . . . . . . Robots Hopped 17 | . . . 3 4 . . 1 . 1 . 3 4 . 1 . . Cave-ins Triggered . | . . . . . . . . . . . . . . . . . Exploration Rate (%) 39 | 4 11 37 40 39 10 91 9 64 17 72 22 12 73 47 62 61 Regions Visited 16 Branch Regions 7 Pre-discovered Areas 4 | . . 1 . . . . . . . . . . . . 3 . Known Exits Taken 2 | . . . . . 1 . . . . . . 1 . . . . Unknown Exits Taken 11 | 1 1 1 1 1 . . . . 1 1 1 . 1 1 1 . Scrap Searched 12 | . . 2 . . . . . . . 3 2 . 1 2 . 2 Spaces Dug 14 | . . . . . . . . . . . . 1 . . 13 . Terrain Destroyed 22 | . . . . . . . . . . . . 1 . . 13 8 Melee 14 | . . . . . . . . . . . . 1 . . 13 . Projectile . | . . . . . . . . . . . . . . . . . AOE 8 | . . . . . . . . . . . . . . . . 8 Terrain Rammed . | . . . . . . . . . . . . . . . . . Walls Destroyed . | . . . . . . . . . . . . . . . . . Machines Disabled . | . . . . . . . . . . . . . . . . . Actions | -11 -10 -10 -9 -8 -7 -7 -6 -6 -6 -6 -6 -5 -5 -5 -5 -4 --------- Run | Yrd Mat Min Mat Mat Fac DSF Fac Was Fac Low Low Fac Upp Upp Zhi Pro Total 4549 | 56 66 159 264 259 403 136 156 71 431 462 175 408 489 271 342 401 Wait 66 | . . 2 7 . 40 . 3 . 1 . 1 7 3 . 2 . Move 4147 | 39 63 137 226 196 340 103 134 70 409 459 160 381 486 270 310 364 Hop 16 | . . . 3 3 . . 1 . 1 . 3 4 . 1 . . Pick Up 77 | 11 2 5 6 12 8 3 5 1 7 1 2 6 . . 2 6 Fast Attach 18 | 1 . . . 3 2 2 . . 3 . . . . . 5 2 Attach 57 | 5 1 2 6 11 9 5 2 . 2 . 3 1 . . . 10 Detach 6 | . . . . . 4 . 1 . . . . . . . 1 . Swap 17 | . . . 4 3 . 2 2 . 1 . 1 3 . . . 1 Drop 33 | . . 2 . 8 . 2 2 . 7 . 1 3 . . 7 1 Fire 67 | . . 11 12 14 . 19 4 . . 2 . . . . . 5 Melee 45 | . . . . 9 . . 2 . . . 4 3 . . 15 12 Ram . | . . . . . . . . . . . . . . . . . Kick . | . . . . . . . . . . . . . . . . . Crush . | . . . . . . . . . . . . . . . . . Escape Stasis . | . . . . . . . . . . . . . . . . . Rewire . | . . . . . . . . . . . . . . . . . Trap . | . . . . . . . . . . . . . . . . . Miscellaneous . | . . . . . . . . . . . . . . . . . Route ------- -11/Scrapyard -10/Materials -10/Mines -9/Materials -8/Materials -7/Factory -7/DSF -6/Factory -6/Waste -6/Factory -6/Lower Caves -6/Lower Caves -5/Factory (discovered 3 exits: *Fac / *Upp x2) -5/Upper Caves -5/Upper Caves -5/Zhirov -4/Proximity Caves History --------- Turn | Location | Event 15 | -11/Scrapyard | Discovered new exit (range 15) 70 | -11/Scrapyard | Entered Materials 70 | -10/Materials | Discovered new exit (range 8) 149 | -10/Materials | Entered Mines 240 | -10/Mines | Met a Derelict bent on vengeance 318 | -10/Mines | Build established: Mutant 347 | -10/Mines | Discovered new exit (range 7) 354 | -10/Mines | Entered Materials 354 | -9/Materials | Evolved 2 slots: Propulsion x2 471 | -9/Materials | Lost 4 parts (1p2n1w) 488 | -9/Materials | Discovered new exit (range 4) 490 | -9/Materials | Entered another Materials area 490 | -8/Materials | Evolved 2 slots: Power x1, Utility x1 623 | -8/Materials | Core integrity fell below 50% 629 | -8/Materials | Core integrity fell below 20% 652 | -8/Materials | Discovered new exit (range 16) 664 | -8/Materials | Entered Factory 664 | -7/Factory | Evolved 2 slots: Propulsion x2 679 | -7/Factory | Lost 15 parts (2p11n2w) 1044 | -7/Factory | Identified exit to DSF 1045 | -7/Factory | Entered DSF 1084 | -7/DSF | Additional patrols routed to DSF 1167 | -7/DSF | Lost 3 parts (1n2u) 1195 | -7/DSF | Discovered new exit (range 14) 1203 | -7/DSF | Entered Factory 1203 | -6/Factory | Evolved 2 slots: Utility x1, Weapon x1 1223 | -6/Factory | Spotted B-75 Beast 1277 | -6/Factory | Sucked down chute 1277 | -6/Factory | Entered Waste 1281 | -6/Waste | Spotted C-40 Crusher 1289 | -6/Waste | Spotted C-40 Crusher 1298 | -6/Waste | Spotted C-40 Crusher 1298 | -6/Waste | Spotted C-40 Crusher 1298 | -6/Waste | Discovered new exit (range 16) 1298 | -6/Waste | Spotted C-40 Crusher 1304 | -6/Waste | Entered Factory 1458 | -6/Factory | Discovered new exit (range 13) 1461 | -6/Factory | Entered Lower Caves 1497 | -6/Lower Caves | Learned 4 Factory zone layouts 1523 | -6/Lower Caves | Attacked by a delusional Derelict stockpiling parts 1558 | -6/Lower Caves | Discovered new exit (range 3) 1558 | -6/Lower Caves | Entered another Lower Caves area 1564 | -6/Lower Caves | Discovered new exit (range 13) 1579 | -6/Lower Caves | Attracted the attention of an 0b10 outpost 1604 | -6/Lower Caves | Entered Factory 1604 | -5/Factory | Evolved 2 slots: Utility x1, Weapon x1 1605 | -5/Factory | Identified exit to Factory 1605 | -5/Factory | Identified exit to Upper Caves 1706 | -5/Factory | Entered Upper Caves 1716 | -5/Upper Caves | Learned Factory stockpile data 1723 | -5/Upper Caves | Build established: Sprinter 1727 | -5/Upper Caves | Encountered a Warlord checkpoint 1773 | -5/Upper Caves | Learned Factory machine intel 1797 | -5/Upper Caves | Discovered new exit (range 9) 1807 | -5/Upper Caves | Entered another Upper Caves area 1842 | -5/Upper Caves | Discovered new exit (range 10) 1862 | -5/Upper Caves | Entered Zhirov 1862 | -5/Zhirov | Discovered new exit (range 3) 1866 | -5/Zhirov | Met Zhirov 1869 | -5/Zhirov | Zhirov requested help retrieving the SGEMP Prototype 1871 | -5/Zhirov | Learned location of Quarantine (-3) 1871 | -5/Zhirov | Learned location of Testing (-2) 1871 | -5/Zhirov | Learned location of Command (-1) 1878 | -5/Zhirov | Found Alien Artifact 1882 | -5/Zhirov | Found Alien Artifact 1978 | -5/Zhirov | Entered Proximity Caves 1981 | -4/Proximity Caves | Spotter reported a threat 2035 | -4/Proximity Caves | Lost 3 parts (2n1u) 2079 | -4/Proximity Caves | Spotted B-86 Titan 2101 | -4/Proximity Caves | Attracted the attention of an 0b10 checkpoint 2122 | -4/Proximity Caves | Core integrity fell below 50% 2140 | -4/Proximity Caves | Core integrity fell below 20% 2159 | -4/Proximity Caves | Destroyed by G-67 Veteran with Plasma Rifle Last Messages --------------- 02109_ Slug penetrates Wall. 02109_ Destroyed VTOL Module. 02111_ S-27 Virus destroyed. 02111_ Penetrated by Slug. 02114_ Mic. Antimatter Reactor destroyed. 02114_ Penetrated by Slug. 02120_ Flak Gun destroyed. 02120_ Slug penetrates Wall. 02120_ P-70 Sage suffers critical hit (Destroy). 02124_ Cld. VTOL Module destroyed. 02127_ Slug penetrates Wall. 02128_ P-70 Sage resets P-70 Sage, system corruption cleaned. 02128_ Penetrated by Slug. 02128_ Cld. VTOL Module destroyed. 02131_ Imp. Titanium Leg destroyed. 02134_ Penetrated by Slug. 02135_ P-70 Sage resets Y-64 Sentinel, system corruption cleaned. 02139_ Penetrated by Slug. 02150_ Med. Storage Unit destroyed. 02152_ Acquired Imp. Transmission Jammer. Map ----- +----------------------------------------------------+ | ?????????????????????????????????????????????????? | | ?????????????????????????????????????????????????? | | ?????????????????????????????????????????????????? | | ?????????????????????????????????????????????????? | | ?????????????????????????????????????????????????? | | ?????????????????????????????????????????????????? | | ?????????????????????????????????????????????????? | | ?????????????????????????#???????????????????????? | | ???????????????????????? ##?????????????????????? | | # ????????????????????? #?????????????????????? | | ?????????????????????gg #?????????????????????? | | ???????????###??###?? ??????????????????????? | | ??????????## #### ### #??????????????????????? | | ?????????## ## #??????????????????????? | | ????????## g #??????????????????????? | | ????????# #??????????????????????? | | ????????# g #??????????????????????? | | #????????# ?# #??????????????????????? | | #?????##### #?# #??????????????????????? | | #????## ## #?# #??????????????????????? | | #????# ### ##?????????????????????? | | #????# ####??????????????????? | | "????# ## #??????????????????? | | #????# ### #### #??????????????????? | | ###??# ### ##??### #??????????????????? | | #### ## #?????#@ #??????????????????? | | # ##?????# #??????????????????? | | ## ##??????# ##??????????????????? | | ## #???????## #???????????????????? | | # #???????? #???????????????????? | | ## #??????? ???????????????????? | | ### ?????? ??????????????????? | | ## ????? ?????????????????? | | ## ? #????### ????????????????? | | ##### ###? ###???????# ???????????????? | | ####???# ##????#??????????# ??????????????? | | ???????### ##?????????????????#####?????????????? | | ??????????###????????????????????????????????????? | | ?????????????????????????????????????????????????? | | ?????????????????????????????????????????????????? | | ?????????????????????????????????????????????????? | | ?????????????????????????????????????????????????? | | ?????????????????????????????????????????????????? | | ?????????????????????????????????????????????????? | | ?????????????????????????????????????????????????? | | ?????????????????????????????????????????????????? | | ?????????????????????????????????????????????????? | | ?????????????????????????????????????????????????? | | ?????????????????????????????????????????????????? | | ?????????????????????????????????????????????????? | +----------------------------------------------------+ Best States ------------- Heat Dissipation 67 Energy Generation 42 Energy Capacity 510 Matter Stores 300 Matter Capacity 600 Sight Range 16 Terrain Scan Density 10 Power Amplification 20 Additional Mass Support 9 Evasion (%) 66 Targeting Accuracy 8 Item Schematics ----------------- None Robot Schematics ------------------ None Fabricated ------------ Nothing Alien Tech Used ----------------- None Achievements -------------- None Challenges ------------ None Game ------ Seed JunkCatalystActivator Manual? 0 Play Time 01:03:25 Cumulative 121.7 hours Start 2024.08.08 @ 13:50:05 End 2024.08.08 @ 15:14:08 Sessions 1 Manual Loads 0 Difficulty Rogue Special Mode None Game No. 170 Rogue 170 Adventurer 0 Explorer 0 Win Type - Total 0 Types 0/0/0/0/0/0/0/0/0 Lore% 30 Gallery% 57 Achievement% 38 Wizard Run 0 Options --------- Layout 0 ASCII 0 Keyboard 0 Movement Mouse Keybinds 0 Fullscreen 1 Font 24/Smallcaps Map View 76x50 Zoom Use 0% Tactical HUD 1 Map Filters NONE Filters NONE Steam 1 RUN: 9c38697b-91db-41c2-bc0e-b7efd055a431